lending/lending_fUSD_20250430
["ID","MTS","AMOUNT","RATE_DAILY","PERIOD"]
[359450219,1746024114122,627.07,0.00018822,2]
[359450220,1746024134522,1263.26,0.00018814,2]
[359450221,1746024155171,174.06643188,0.0003,30]
[359450222,1746024170042,2018.42,0.00018816,2]
[359450223,1746024173501,3653.17,0.00018822,2]
[359450224,1746024183037,200.0,0.00018814,2]
[359450225,1746024216085,200.0,0.00018802,2]
[359450226,1746024248320,150.0,1e-08,2]
[359450227,1746024256439,226.92084,0.0002474,34]
[359450228,1746024256516,226.92083,0.0002506,34]
[359450229,1746024262975,2436.11,0.00018775,2]
[359450230,1746024302921,2699.49,0.00018816,2]
[359450231,1746024304513,749.68,0.00018761,2]
[359450232,1746024348017,4000.0,0.00018764,2]
[359450233,1746024432231,400.0,0.000193,7]
[359450234,1746024434320,800.0,0.000194,7]
[359450249,1746024436412,1300.0,0.000195,7]
[359450326,1746024438510,1700.0,0.000196,7]
[359450327,1746024440626,2200.0,0.000197,7]
[359450328,1746024442681,400.0,0.000198,7]
[359450329,1746024444653,1852.42,0.00018756,2]
[359450330,1746024444783,400.0,0.000199,7]
[359450347,1746024515390,283.83,0.00018816,2]
[359450351,1746024550441,155.6,0.00018816,2]
[359450383,1746024602715,2000.0,0.0002,4]
[359450395,1746024631817,-262.81374535,0.00019363,2]
[359450396,1746024631830,-178.86725465,0.00019363,2]
[359450397,1746024631856,-21.13274535,0.00019363,2]
[359450398,1746024631868,-250.0,0.00019363,2]
[359450399,1746024631881,-186.86823245,0.00019363,2]
[359450400,1746024632077,-13.13176755,0.00019363,2]
[359450401,1746024632089,-193.88076388,0.00019363,2]
[359450402,1746024632101,-381.37777715,0.00019606,2]
[359450403,1746024632118,-86.39052285,0.00019606,2]
[359450404,1746024632131,-324.60291188,0.00019659,2]
[359450463,1746024638304,-167.31,0.00019341,2]
[359450464,1746024638313,-1017.32829371,0.00019659,2]
[359450466,1746024638325,-820.16519441,0.00019659,2]
[359450468,1746024638334,-150.0,0.00019671,2]
[359450470,1746024638345,-1200.0,0.00019692,2]
[359450472,1746024638354,-300.0,0.00019692,2]
[359450474,1746024638365,-3775.45051956,0.00019693,2]
[359450476,1746024638375,-1771.25319966,0.00019693,2]
[359450478,1746024638386,-922.28734172,0.00019693,2]
[359450480,1746024638395,-631.03808419,0.00019695,2]
[359450482,1746024638405,-420.37546078,0.000197,2]
[359450484,1746024638414,-300.0,0.00019702,2]
[359450486,1746024638423,-44059.779,0.00019703,2]
[359450488,1746024638432,-12500.0,0.00019706,2]
[359450490,1746024638441,-765.95,0.00019708,2]
[359450492,1746024638451,-12500.0,0.00019715,2]
[359450494,1746024638460,-1000.0,0.00019721,2]
[359450495,1746024638470,-12500.0,0.00019724,2]
[359450498,1746024638483,-12500.0,0.00019733,2]
[359450500,1746024638492,-1000.0,0.00019738,2]
[359450501,1746024638504,-12500.0,0.00019742,2]
[359450504,1746024638517,-12500.0,0.0001975,2]
[359450506,1746024638527,-12500.0,0.00019759,2]
[359450508,1746024638537,-12500.0,0.00019768,2]
[359450510,1746024638546,-1735.96181784,0.00019772,2]
[359450511,1746024638557,-500.0,0.00019773,2]
[359450513,1746024638566,-500.0,0.00019773,2]
[359450515,1746024638576,-12500.0,0.00019777,2]
[359450517,1746024638585,-175.27175122,0.00019782,2]
[359450519,1746024638595,-12500.0,0.00019786,2]
[359450521,1746024638604,-12500.0,0.00019794,2]
[359450523,1746024638616,-1735.96181784,0.00019795,2]
[359450525,1746024638626,-199.02054066,0.00019801,2]
[359450527,1746024638635,-12500.0,0.00019803,2]
[359450529,1746024638644,-500.0,0.00019811,2]
[359450531,1746024638653,-309.030069,0.00019811,2]
[359450533,1746024638663,-500.0,0.00019811,2]
[359450535,1746024638672,-500.0,0.00019811,2]
[359450537,1746024638681,-500.0,0.00019811,2]
[359450539,1746024638690,-500.0,0.00019811,2]
[359450541,1746024638700,-500.0,0.00019811,2]
[359450543,1746024638709,-500.0,0.00019811,2]
[359450545,1746024638718,-150.0,0.00019811,2]
[359450547,1746024638728,-12500.0,0.00019812,2]
[359450549,1746024638738,-1735.96181784,0.00019818,2]
[359450551,1746024638747,-12500.0,0.00019821,2]
[359450553,1746024638757,-175.27175122,0.00019825,2]
[359450555,1746024638766,-172.20451874,0.0001983,2]
[359450557,1746024638775,-12500.0,0.0001983,2]
[359450559,1746024638785,-12500.0,0.00019838,2]
[359450561,1746024638794,-1735.96181784,0.00019841,2]
[359450563,1746024638804,-12500.0,0.00019847,2]
[359450565,1746024638813,-618.24406251,0.00019853,2]
[359450567,1746024638823,-3500.0,0.00019856,2]
[359450569,1746024638832,-1735.96181784,0.00019864,2]
[359450571,1746024638841,-300.0,0.00019865,2]
[359450573,1746024638851,-175.27175122,0.00019867,2]
[359450575,1746024638860,-12500.0,0.00019874,2]
[359450577,1746024638872,-9284.18103863,0.00019882,2]
[359450579,1746024638881,-1735.96181784,0.00019887,2]
[359450581,1746024638890,-12500.0,0.00019891,2]
[359450583,1746024638899,-577.5393,0.000199,2]
[359450585,1746024638908,-168.26335103,0.000199,2]
[359450587,1746024638918,-12500.0,0.000199,2]
[359450589,1746024638927,-168.26252116,0.000199,2]
[359450591,1746024638937,-168.26335103,0.00019905,2]
[359450593,1746024638947,-168.26335103,0.0001991,2]
[359450595,1746024638957,-1735.96181784,0.0001991,2]
[359450597,1746024638966,-175.27175122,0.0001991,2]
[359450599,1746024638975,-843.41033504,0.0001991,2]
[359450601,1746024638984,-189.95194323,0.0001991,2]
[359450603,1746024638994,-1000.0,0.0001991,2]
[359450605,1746024639003,-1000.0,0.0001991,2]
[359450606,1746024639012,-1000.0,0.0001991,2]
[359450608,1746024639022,-1000.0,0.0001991,2]
[359450610,1746024639032,-1000.0,0.0001991,2]
[359450612,1746024639041,-1000.0,0.0001991,2]
[359450614,1746024639050,-1000.0,0.0001991,2]
[359450616,1746024639060,-1000.0,0.0001991,2]
[359450617,1746024639070,-1000.0,0.0001991,2]
[359450619,1746024639079,-1000.0,0.0001991,2]
[359450621,1746024639088,-1000.0,0.0001991,2]
[359450623,1746024639097,-1000.0,0.0001991,2]
[359450625,1746024639107,-1000.0,0.0001991,2]
[359450627,1746024639118,-1000.0,0.0001991,2]
[359450628,1746024639128,-1000.0,0.0001991,2]
[359450630,1746024639137,-1000.0,0.0001991,2]
[359450632,1746024639146,-1000.0,0.0001991,2]
[359450634,1746024639155,-1000.0,0.0001991,2]
[359450636,1746024639163,-1000.0,0.0001991,2]
[359450638,1746024639172,-1000.0,0.0001991,2]
[359450640,1746024639180,-1000.0,0.0001991,2]
[359450641,1746024639189,-1000.0,0.0001991,2]
[359450643,1746024639199,-1000.0,0.0001991,2]
[359450645,1746024639207,-1000.0,0.0001991,2]
[359450647,1746024639217,-1000.0,0.0001991,2]
[359450649,1746024639225,-1000.0,0.0001991,2]
[359450651,1746024639235,-1000.0,0.0001991,2]
[359450653,1746024639243,-1000.0,0.0001991,2]
[359450654,1746024639252,-1000.0,0.0001991,2]
[359450656,1746024639261,-1000.0,0.0001991,2]
[359450658,1746024639271,-1000.0,0.0001991,2]
[359450660,1746024639281,-1000.0,0.0001991,2]
[359450662,1746024639290,-1000.0,0.0001991,2]
[359450664,1746024639300,-1000.0,0.0001991,2]
[359450665,1746024639309,-1000.0,0.0001991,2]
[359450667,1746024639318,-1000.0,0.0001991,2]
[359450669,1746024639327,-1000.0,0.0001991,2]
[359450671,1746024639336,-1000.0,0.0001991,2]
[359450673,1746024639347,-1000.0,0.0001991,2]
[359450675,1746024639356,-1000.0,0.0001991,2]
[359450677,1746024639366,-1000.0,0.0001991,2]
[359450678,1746024639376,-1000.0,0.0001991,2]
[359450680,1746024639385,-1000.0,0.0001991,2]
[359450682,1746024639394,-1000.0,0.0001991,2]
[359450684,1746024639403,-1000.0,0.0001991,2]
[359450686,1746024639412,-1000.0,0.0001991,2]
[359450688,1746024639422,-1000.0,0.0001991,2]
[359450689,1746024639431,-1000.0,0.0001991,2]
[359450691,1746024639441,-1000.0,0.0001991,2]
[359450693,1746024639450,-1000.0,0.0001991,2]
[359450695,1746024639460,-1000.0,0.0001991,2]
[359450697,1746024639469,-1000.0,0.0001991,2]
[359450699,1746024639479,-1000.0,0.0001991,2]
[359450701,1746024639488,-1000.0,0.0001991,2]
[359450703,1746024639498,-441.0,0.0001991,2]
[359450705,1746024639508,-504.93419582,0.00019973,2]
[359450706,1746024639519,-500.0,0.00019973,2]
[359450708,1746024639528,-500.0,0.00019973,2]
[359450710,1746024639538,-500.0,0.00019973,2]
[359450712,1746024639548,-500.0,0.00019973,2]
[359450714,1746024639559,-500.0,0.00019973,2]
[359450716,1746024639568,-605.49057199,0.00019973,2]
[359450718,1746024639578,-301.84461807,0.00019973,2]
[359450720,1746024639589,-500.0,0.00019973,2]
[359450722,1746024639599,-500.86272975,0.00019973,2]
[359450724,1746024639608,-500.0,0.00019973,2]
[359450726,1746024639618,-500.0,0.00019973,2]
[359450728,1746024639628,-500.0,0.00019973,2]
[359450729,1746024639637,-502.19667785,0.00019973,2]
[359450731,1746024639647,-208.35397282,0.00019973,2]
[359450733,1746024639656,-501.90027515,0.00019973,2]
[359450735,1746024639665,-500.0,0.00019973,2]
[359450737,1746024639675,-500.0,0.00019973,2]
[359450738,1746024639685,-243.25265261,0.00019973,2]
[359450739,1746024639695,-7538.0880102,0.00019986,2]
[359450740,1746024639705,-14914.8978795,0.00019986,2]
[359450741,1746024639715,-621.0685582,0.00019986,2]
[359450742,1746024639725,-269.78704286,0.0001999,2]
[359450743,1746024639736,-500.0,0.00019999,2]
[359450744,1746024639745,-675.05638042,0.00019999,2]
[359450746,1746024639755,-2846.15460642,0.00019999,2]
[359450748,1746024639765,-150.0,0.00019999,2]
[359450750,1746024639776,-150.0,0.00019999,2]
[359450752,1746024639787,-150.0,0.00019999,2]
[359450754,1746024639797,-150.0,0.00019999,2]
[359450756,1746024639806,-168.47784832,0.00019999,2]
[359450758,1746024639816,-1963923.53219509,0.0002,2]
[359450760,1746024639825,-39742.26236548,0.0002,2]
[359450762,1746024639834,-301.26767643,0.0002,2]
[359450764,1746024639843,-10000.0,0.0002,2]
[359450765,1746024639852,-1482.76242669,0.0002,2]
[359450767,1746024639863,-4303.89037235,0.0002,2]
[359450768,1746024639872,-481.2480226,0.0002,2]
[359450769,1746024639880,-19548.5721221,0.0002,2]
[359450770,1746024639890,-2807782.90804221,0.0002,2]
[359450772,1746024639936,-380.993,0.0002,2]
[359450773,1746024639948,-1306.20695521,0.0002,2]
[359450774,1746024640098,-382.26942703,0.0002,2]
[359450775,1746024640110,-1000.0,0.0002,2]
[359450776,1746024640122,-5400581.73554368,0.0002,2]
[359450777,1746024640312,-24104.6103854,0.0002,2]
[359450778,1746024640451,-8973.8118,0.0002,2]
[359450779,1746024640561,-11.89684813,0.0002,2]
[359450781,1746024640768,-9541.57538199,0.0002,2]
[359450803,1746024643004,-17075.6541384,0.0002,2]
[359450804,1746024643016,-3682.0604485,0.0002,2]
[359450805,1746024643029,-9874.6495056,0.0002,2]
[359450806,1746024643104,-726.92804846,0.0002,2]
[359450807,1746024643206,-1390.00550374,0.0002,2]
[359450830,1746024644165,-47459.22947928,0.0002,2]
[359450832,1746024645792,-940.37599999,0.0002,2]
[359450833,1746024645804,-10883.48381927,0.0002,2]
[359450834,1746024645819,-551.91721326,0.0002,2]
[359450835,1746024645995,-1944.74100471,0.0002,2]
[359450836,1746024646008,-5648.256,0.0002,2]
[359450837,1746024646020,-582.9956138,0.0002,2]
[359450851,1746024698670,151.28055,0.0002,23]
[359450874,1746024832823,250.0,0.00018754,2]
[359450875,1746024849687,150.0,1e-08,2]
[359450876,1746024858389,23900.0,0.00018754,2]
[359450877,1746024903849,1775.51,0.00018851,2]
[359450878,1746025004276,151.28055,0.000248,34]
[359450879,1746025004324,151.28056,0.000273,39]
[359450880,1746025004384,151.28056,0.000298,44]
[359450881,1746025055839,283.61,0.00025565,120]
[359450882,1746025056065,283.61,0.00028122,120]
[359450883,1746025056281,283.61,0.00030678,120]
[359450884,1746025194640,3030.35460631,0.0003,30]
[359450885,1746025291814,1000.0,0.00032877,60]
[359450886,1746025298725,1000.0,0.00032877,60]
[359450887,1746025305194,700.0,0.00032877,60]
[359450888,1746025309344,151.28055,0.0002595,36]
[359450889,1746025448186,-261.8877,0.00019685,2]
[359450890,1746025448210,-279.94442703,0.000197,2]
[359450891,1746025448239,-520.78854538,0.00019886,2]
[359450892,1746025448263,-799.6414,0.00019886,2]
[359450893,1746025448287,-1200.0,0.00019898,2]
[359450894,1746025448314,-300.0,0.00019898,2]
[359450895,1746025448338,-1173.49376095,0.00019899,2]
[359450896,1746025448363,-2684.028,0.00019899,2]
[359450897,1746025448387,-172.586,0.00019899,2]
[359450898,1746025448411,-4486.6194,0.000199,2]
[359450899,1746025448435,-18320.1016,0.000199,2]
[359450900,1746025448459,-2387.1521,0.000199,2]
[359450901,1746025448483,-1173.49376094,0.000199,2]
[359450902,1746025448507,-338.9129795,0.0001991,2]
[359450903,1746025448531,-158.21966123,0.0001991,2]
[359450904,1746025448559,-3416.08918202,0.0001991,2]
[359450905,1746025448583,-591.19722479,0.00019973,2]
[359450906,1746025448609,-500.0,0.00019973,2]
[359450907,1746025448632,-500.0,0.00019973,2]
[359450908,1746025448657,-500.0,0.00019973,2]
[359450909,1746025448681,-499.52427939,0.00019973,2]
[359450910,1746025448706,-218712.9187008,0.00019986,2]
[359450911,1746025448732,-7916.9554927,0.00019986,2]
[359450912,1746025448761,-16272.0638036,0.00019986,2]
[359450913,1746025448788,-500.0,0.00019999,2]
[359450914,1746025448816,-467.8210483,0.00019999,2]
[359450915,1746025448843,-500.0,0.00019999,2]
[359450916,1746025448869,-500.0,0.00019999,2]
[359450917,1746025448895,-500.0,0.00019999,2]
[359450918,1746025448921,-500.0,0.00019999,2]
[359450919,1746025448948,-500.0,0.00019999,2]
[359450920,1746025448973,-13366.56093337,0.0002,2]
[359450921,1746025456829,-500.0,0.00019973,2]
[359450922,1746025456855,-99500.0,0.0002,2]
[359450923,1746025488041,-168.92448851,0.0001991,2]
[359450924,1746025488066,-99831.07551149,0.0002,2]
[359450925,1746025507989,7159.808434,7.945e-05,2]
[359450926,1746025572388,150.0,1e-08,2]
[359450927,1746025593096,1000.0,0.00032876,60]
[359450931,1746025650051,250.0,0.00017,2]
[359450932,1746025651130,300.0,0.00019,2]
[359450956,1746025793652,174.39,0.00016564,2]
[359450961,1746025831957,-458.88,0.000199,2]
[359450963,1746025832005,-9.82969086,0.000199,2]
[359450964,1746025832015,-3074.4802638,0.000199,2]
[359450965,1746025832024,-212.05224491,0.000199,2]
[359450966,1746025832034,-385.16450765,0.00019973,2]
[359450967,1746025832043,-1200.0,0.00019985,2]
[359450968,1746025832052,-300.0,0.00019985,2]
[359450969,1746025832061,-300.0,0.00019985,2]
[359450970,1746025832071,-12888.8006389,0.00019986,2]
[359450971,1746025832086,-5074.6447518,0.00019986,2]
[359450972,1746025832197,-2200.469976,0.00019986,2]
[359450973,1746025832208,-9491.18475858,0.00019986,2]
[359450974,1746025832220,-6648.05288531,0.00019986,2]
[359450975,1746025832231,-4033.93065,0.00019986,2]
[359450976,1746025832242,-824.121,0.00019986,2]
[359451500,1746025838027,-9153.9,0.00019986,2]
[359451501,1746025838181,-387.72136,0.00019986,2]
[359451502,1746025838193,-11328.0742932,0.00019986,2]
[359451503,1746025838228,-14562.53239784,0.00019986,2]
[359451504,1746025838239,-4956.77444499,0.00019986,2]
[359451505,1746025838273,-807.4026552,0.00019986,2]
[359451686,1746025840364,-3116.79478859,0.00019986,2]
[359451688,1746025840376,-1072.00108281,0.00019986,2]
[359451700,1746025843172,-881.63746929,0.00019986,2]
[359451702,1746025843518,-7243.04999998,0.00019986,2]
[359451703,1746025843530,-632.34128064,0.00019986,2]
[359451720,1746025846142,-1771.53599999,0.00019986,2]
[359451721,1746025846297,-816.8,0.00019986,2]
[359451722,1746025846332,-2444.84,0.00019986,2]
[359451723,1746025846343,-1864.12420033,0.00019986,2]
[359451733,1746025897319,-5066.1788912,0.00019986,2]
[359451734,1746025897340,-4533.8211088,0.00019986,2]
[359451735,1746025956741,151.280566,0.0002,23]
[359451736,1746026025800,1686.73,0.0001812,2]
[359451737,1746026127342,184.14682,0.0002,23]
[359451738,1746026137836,1000.0,0.0003,30]
[359451739,1746026138278,1000.0,0.0003,30]
[359451740,1746026138684,1000.0,0.0003,30]
[359451741,1746026139090,1000.0,0.0003,30]
[359451742,1746026139758,1000.0,0.0003,30]
[359451743,1746026140211,1000.0,0.0003,30]
[359451744,1746026140614,1000.0,0.0003,30]
[359451745,1746026141001,1000.0,0.0003,30]
[359451746,1746026141447,1000.0,0.0003,30]
[359451747,1746026141885,1000.0,0.0003,30]
[359451751,1746026280016,1100.0,0.0003,30]
[359451752,1746026280609,1100.0,0.0003,30]
[359451753,1746026281246,1100.0,0.0003,30]
[359451754,1746026282615,1100.0,0.0003,30]
[359451755,1746026287795,1000.0,0.0003,30]
[359451756,1746026288035,1000.0,0.0003,30]
[359451757,1746026416767,2024.413593,0.00032876,60]
[359451758,1746026418243,50000.0,0.00032877,60]
[359451759,1746026432689,184.14683,0.000248,34]
[359451760,1746026432769,184.14683,0.000273,39]
[359451764,1746026725466,762.04491201,0.000108,2]
[359451765,1746026727760,2045.86191663,0.00011,2]
[359451766,1746026736340,1316.42643881,9e-05,2]
[359451770,1746026754947,1254.38741807,6.94e-05,2]
[359451777,1746026766795,1064.77354034,8e-05,2]
[359451779,1746026780671,1000.0,0.0003286,60]
[359451790,1746026839849,3520.43870248,0.0001305,2]
[359451793,1746026871402,4276.13545395,0.00013,2]
[359451795,1746026874499,6892.95421434,0.0001,2]
[359451805,1746026912843,6331.84355202,0.000149,2]
[359451807,1746026918012,490.1403527,0.000154,2]
[359451808,1746026918423,1013.0,0.0002,6]
[359451809,1746026919739,7036.61225512,0.00015,5]
[359451811,1746026922374,19310.59858988,0.00013368,2]
[359451812,1746026923513,153.03556232,0.000189,2]
[359451844,1746027032382,-972.18582414,0.00019578,2]
[359451845,1746027032471,-350.0,0.00019578,2]
[359451846,1746027032483,-221.19417586,0.00019578,2]
[359451847,1746027032492,-382.97,0.00019587,2]
[359451848,1746027032503,-144.27687382,0.0001983,2]
[359451849,1746027032514,-2306.50168585,0.0001983,2]
[359451850,1746027032524,-166.55,0.00019854,2]
[359451851,1746027032534,-421.83872181,0.00019886,2]
[359451852,1746027032544,-421.83872172,0.00019889,2]
[359451853,1746027032553,-1968.38349757,0.0001989,2]
[359451854,1746027032584,250.0,0.00018923,2]
[359451855,1746027032642,-450.0,0.0001989,2]
[359451856,1746027032766,-133.50286451,0.0001989,2]
[359451858,1746027032776,-1200.0,0.0001989,2]
[359451860,1746027032785,-421.83872172,0.00019891,2]
[359451862,1746027032795,-421.83872172,0.00019894,2]
[359451864,1746027032804,-202.11755368,0.00019896,2]
[359451984,1746027038520,-97.88244632,0.00019896,2]
[359451985,1746027038530,-421.83872172,0.00019897,2]
[359451986,1746027038540,-300.0,0.00019897,2]
[359451987,1746027038550,-5009.0,0.00019899,2]
[359451988,1746027038560,-421.83872172,0.00019899,2]
[359451989,1746027038569,-335.45442179,0.000199,2]
[359451990,1746027038579,-1087.9,0.000199,2]
[359451991,1746027038588,-367.51807779,0.000199,2]
[359451992,1746027038599,-47045.88946253,0.000199,2]
[359451993,1746027038614,-450.319,0.000199,2]
[359451994,1746027038650,-542.78880483,0.000199,2]
[359451995,1746027038702,-34616.12287582,0.000199,2]
[359451996,1746027038712,-2147.222,0.000199,2]
[359451997,1746027038722,-172.587,0.000199,2]
[359451998,1746027038732,-168.9244885,0.000199,2]
[359451999,1746027038742,-368.38824248,0.000199,2]
[359452000,1746027038752,-2767.03223742,0.000199,2]
[359452001,1746027038761,-2767.03223741,0.00019901,2]
[359452002,1746027038771,-421.83872172,0.00019902,2]
[359452003,1746027038781,-2767.03223741,0.00019902,2]
[359452004,1746027038791,-2767.03223741,0.00019903,2]
[359452005,1746027038800,-2767.03223741,0.00019904,2]
[359452006,1746027038809,-421.83872172,0.00019905,2]
[359452007,1746027038819,-2767.03223741,0.00019906,2]
[359452008,1746027038829,-2767.03223741,0.00019907,2]
[359452009,1746027038840,-421.83872172,0.00019907,2]
[359452010,1746027038850,-2767.03223741,0.00019908,2]
[359452011,1746027038859,-2767.03223741,0.00019909,2]
[359452012,1746027038869,-421.83872172,0.0001991,2]
[359452013,1746027038878,-167.94072349,0.0001991,2]
[359452014,1746027038888,-726.42357574,0.0001991,2]
[359452015,1746027038897,-2767.03223741,0.0001991,2]
[359452016,1746027038908,-7213.73393425,0.0001991,2]
[359452017,1746027038917,-29625.08,0.00019922,2]
[359452018,1746027038927,-203.0,0.00019932,2]
[359452019,1746027038937,-250.0,0.00019936,2]
[359452020,1746027038947,-200.0,0.00019936,2]
[359452021,1746027038958,-200.0,0.00019969,2]
[359452023,1746027038968,-514.0,0.0001997,2]
[359452025,1746027038977,-500.0,0.00019973,2]
[359452027,1746027038987,-500.0,0.00019973,2]
[359452029,1746027038996,-500.0,0.00019973,2]
[359452031,1746027039006,-150.0,0.00019977,2]
[359452033,1746027039015,-375.89281427,0.0001998,2]
[359452035,1746027039024,-54768.69964384,0.00019986,2]
[359452037,1746027039036,-3400.15251366,0.00019986,2]
[359452041,1746027039059,-52733.2319994,0.00019986,2]
[359452043,1746027039068,-4686.0743086,0.00019986,2]
[359452046,1746027039077,-10665.0379206,0.00019986,2]
[359452049,1746027039086,-24585.9001972,0.00019986,2]
[359452052,1746027039095,-150.0,0.00019999,2]
[359452054,1746027039104,-150.0,0.00019999,2]
[359452057,1746027039114,-150.0,0.00019999,2]
[359452060,1746027039124,-150.0,0.00019999,2]
[359452063,1746027039133,-10.18243577,0.00019999,2]
[359452067,1746027039148,-139.81756423,0.00019999,2]
[359452071,1746027039158,-150.0,0.00019999,2]
[359452074,1746027039167,-150.0,0.00019999,2]
[359452076,1746027039177,-150.0,0.00019999,2]
[359452078,1746027039187,-150.0,0.00019999,2]
[359452080,1746027039197,-150.0,0.00019999,2]
[359452082,1746027039207,-150.0,0.00019999,2]
[359452084,1746027039216,-150.0,0.00019999,2]
[359452086,1746027039230,-150.0,0.00019999,2]
[359452088,1746027039239,-150.0,0.00019999,2]
[359452090,1746027039249,-159.31068323,0.00019999,2]
[359452092,1746027039258,-500.0,0.00019999,2]
[359452094,1746027039269,-427.47473381,0.00019999,2]
[359452096,1746027039278,-500.0,0.00019999,2]
[359452098,1746027039287,-500.0,0.00019999,2]
[359452100,1746027039297,-500.0,0.00019999,2]
[359452102,1746027039308,-10043.90309549,0.0002,2]
[359452265,1746027040819,-500.0,0.0002,2]
[359452267,1746027041040,-1014.08652442,0.0002,2]
[359452289,1746027043926,-188.59597844,0.0001991,3]
[359452290,1746027043935,-2208.85712436,0.0002,2]
[359452295,1746027046575,-699984.59609598,0.0002,2]
[359452296,1746027046587,-592.27000001,0.0002,2]
[359452297,1746027046598,-21660.1472,0.0002,2]
[359452298,1746027046610,-35373.69793067,0.0002,2]
[359452309,1746027053044,1602.39,0.0001761,2]
[359452316,1746027136527,150.0,0.0001895,2]
[359452319,1746027255441,189.07,0.00029575,120]
[359452320,1746027260839,250.0,0.00019606,7]
[359452321,1746027348523,184.14683,0.0001993,23]
[359452322,1746027437733,1124.46,0.00030137,120]
[359452323,1746027469939,250.0,0.00017,2]
[359452324,1746027471018,300.0,0.00019,2]
[359452325,1746027631767,191.48,0.00019225,2]
[359452343,1746027991510,4000.0,0.000189,2]
[359452346,1746028042333,199.02054066,0.00018806,2]
[359452378,1746028113506,470.66,0.00018863,2]
[359452388,1746028162972,-1000.0,0.00019606,2]
[359452389,1746028162995,-154.5,0.0001963,2]
[359452390,1746028163018,-264.0592,0.000197,2]
[359452391,1746028163042,-189.07,0.00019717,2]
[359452392,1746028163065,-171.79080425,0.0001972,2]
[359452393,1746028163088,-150.0,0.00019726,2]
[359452394,1746028163111,-693.84623064,0.0001975,2]
[359452395,1746028163134,-1200.0,0.00019772,2]
[359452396,1746028163157,-300.0,0.00019772,2]
[359452397,1746028163180,-165.94365012,0.00019773,2]
[359452398,1746028163203,-504.93419582,0.00019773,2]
[359452399,1746028163227,-500.0,0.00019773,2]
[359452400,1746028163249,-500.0,0.00019773,2]
[359452401,1746028163271,-211.47266868,0.00019773,2]
[359452402,1746028163294,-618.24406251,0.00019779,2]
[359452403,1746028163318,-171.79080425,0.00019783,2]
[359452404,1746028163342,-349520.96042802,0.000198,2]
[359452405,1746028163366,-165.47,0.0001982,2]
[359452406,1746028163390,-5870.1012,0.00019822,2]
[359452407,1746028163414,-284.85384883,0.00019822,2]
[359452408,1746028163437,-12500.0,0.00019838,2]
[359452409,1746028163460,-2000.0,0.00019839,2]
[359452410,1746028163483,-200.0,0.00019839,2]
[359452411,1746028163507,-2000.0,0.0001984,2]
[359452412,1746028163533,-500.0,0.0001984,2]
[359452413,1746028163556,-2000.0,0.0001984,2]
[359452414,1746028163581,-2000.0,0.0001984,2]
[359452415,1746028163609,-2000.0,0.0001984,2]
[359452416,1746028163634,-500.0,0.0001984,2]
[359452417,1746028163658,-200.0,0.0001984,2]
[359452418,1746028163690,-200.0,0.0001984,2]
[359452419,1746028163714,-171.79080425,0.00019847,2]
[359452420,1746028163738,-12500.0,0.00019847,2]
[359452421,1746028163761,-12500.0,0.00019856,2]
[359452422,1746028163785,-12500.0,0.00019865,2]
[359452423,1746028163810,-500.0,0.00019873,2]
[359452424,1746028163833,-500.0,0.00019873,2]
[359452425,1746028163858,-12500.0,0.00019874,2]
[359452426,1746028163884,-12500.0,0.00019882,2]
[359452427,1746028163907,-12500.0,0.00019882,2]
[359452428,1746028163929,-12500.0,0.00019891,2]